{"text_format":"3","workbook":"xlsx","n_sheets":4,"sheets":["Mejniki","Načrt","Več informacij","Podatki grafikona"],"not_rendered":{"charts":1,"defined_names":2},"read":"whole","date_system":"1900"}

{"sheet":"Mejniki","index":0,"n_rows":27,"n_cols":5,"rows_kept":27}
["Ustvarite načrt tako, da na ta delovni list vnesete pomembne mejnike in dejavnosti.\nNaslov tega delovnega lista je v celici C1. \nPodatki o tem, kako uporabljate ta delovni list, vključno z navodili za bralnike zaslona, so na voljo na delovnem listu »Več informacij«.\nČe si želite ogledati nadaljnja navodila, se pomikajte navzdol v stolpcu A.",null,"Mejniki"]
["Naslovi tabel so v celicah od C2 do E2. Z možnostmi »Razvrsti in filtriraj« lahko razvrstite ali poiščete določene vnose.\nV tabeli od celice C3 vnesite mejnike z datumi in nastavite mesto za prikaz mejnika na grafikonu.\nStolpec B je skrit. Grafikon je ustvarjen iz teh podatkov in ima drsni trak, s katerim se lahko premikate med deli časovnice. V stolpcu B je določeno, kateri mejniki naj bodo izrisani na grafikonu ob pomikanju po drsnem traku. \nOpozorilo: Če izbrišete ali spremenite vsebino stolpca B, lahko s tem vplivate na integriteto risanja grafikonov, ki je vgrajena v tem delovnem zvezku.","Št.","Položaj","Datum","Mejnik"]
["V celico C1 vnesite položaj za risanje datuma in mejnika na grafikonu. Če želite mejnik izrisati nad časovnico, vnesite pozitivno število med 1 in 3. Če želite mejnik izrisati pod časovnico, vnesite negativno število med 1 in 3.\nV stolpca D in E v tabeli vnesite datum in mejnik ali dejavnost.\nTa vzorec ponovite za vsako novo vrstico v tabeli na desni strani.\nVzorčni podatki so v vrsticah od 3 do 26. Spremenite ali izbrišite vzorčno vsebino in ustvarite svoj načrt.\nZa nadaljnja navodila se pomaknite v celico A27.",{"$f":"ROW($A1)","v":1},1,{"$f":"TODAY()","v":"2018-06-29"},"Začetek"]
[null,{"$f":"ROW($A2)","v":2},-2,{"$f":"D3+10","v":"2018-07-09"},"Analiza težave\ndejavnost 1"]
[null,3,1,{"$f":"D4+20","v":"2018-07-29"},"Primer razvoja primera\ndejavnost 1\ndejavnost 2"]
[null,4,-1,{"$f":"D5+30","v":"2018-08-28"},"Pregled predstavitve"]
[null,5,{"v":-0.5,"d":"-1"},{"$f":"D6+40","v":"2018-10-07"},"Zagon za izvršne\ndejavnost 1\ndejavnost 2"]
[null,6,2,{"$f":"D7+50","v":"2018-11-26"},"Poravnava za izvršne\ndejavnost 1\ndejavnost 2\ndejavnost 3"]
[null,7,{"v":0.5,"d":"1"},{"$f":"D8+60","v":"2019-01-25"},"Odkup delničarjev"]
[null,8,-1,{"$f":"D9+70","v":"2019-04-05"},"Izbiranje vira"]
[null,9,{"v":0.5,"d":"1"},{"$f":"D10+80","v":"2019-06-24"},"Ustvarjanje skupine\ndejavnost 1 "]
[null,10,-2,{"$f":"D11+90","v":"2019-09-22"},"Zagon skupine\ndejavnost 1 \ndejavnost 2\ndejavnost 3\ndejavnost 4"]
[null,11,3,{"$f":"D12+100","v":"2019-12-31"},"Začetek zbirke podatkov"]
[null,12,-1,{"$f":"D13+90","v":"2020-03-30"},"Analiza podatkov"]
[null,13,1,{"$f":"D14+80","v":"2020-06-18"},"Oblika"]
[null,14,1,{"$f":"D15+70","v":"2020-08-27"},"Dokaz o konceptu"]
[null,15,-3,{"$f":"D16+60","v":"2020-10-26"},"Preskus in analiza"]
[null,16,-2,{"$f":"D17+50","v":"2020-12-15"},"Preoblikovanje"]
[null,17,2,{"$f":"D18+40","v":"2021-01-24"},"Ponoven razvoj"]
[null,18,-1,{"$f":"D19+30","v":"2021-02-23"},"Preskus in analiza"]
[null,19,1,{"$f":"D20+20","v":"2021-03-15"},"Preoblikovanje"]
[null,20,-3,{"$f":"D21+10","v":"2021-03-25"},"Ponoven razvoj"]
[null,21,2,{"$f":"D22+20","v":"2021-04-14"},"Končni preskus"]
[null,22,1,{"$f":"D23+30","v":"2021-05-14"},"Preskus beta"]
[null,23,-3,{"$f":"D24+40","v":"2021-06-23"},"Pregled"]
[null,24,-2,{"$f":"D25+50","v":"2021-08-12"},"Izdaja za trženje"]
["Če želite v tabelo mejniki načrta dodati več vrstic, enostavno vstavite novo vrstico nad to.\nNa tem delovnem listu ni dodatnih navodil.",null,"Če želite dodati več mejnikov, nad to vrstico vstavite nove vrstice."]

{"sheet":"Načrt","index":1,"n_rows":3,"n_cols":4,"rows_kept":3}
["Na tem delovnem listu je grafikon, ki prikazuje mejnike z delovnega lista Mejniki. \nLeta so označena v celicah B2, C2 in D2, uporabljen pa je slog Naslov 3.\nHkrati je na grafikonu izrisanih 10 mejnikov. \nZ drsnim trakom v celicah od B4 do D4 se pomikate po načrtu.\nLeta časovnice so v celicah od B3 do D3.\nNa tem delovnem listu ni dodatnih navodil."]
[]
[null,{"$f":"'Podatki grafikona'!B20","v":2018},{"$f":"'Podatki grafikona'!B21","v":""},{"$f":"'Podatki grafikona'!B22","v":2019}]

{"sheet":"Več informacij","index":2,"n_rows":5,"n_cols":1,"rows_kept":5}
["Več o tem delovnem zvezku"]
["Navodila za bralnike zaslona"]
["V tem delovnem zvezku so 4 delovni listi. \n\nMejniki\nNačrt\nVeč informacij\nPodatki grafikona (skrito)\n\nNavodila za posamezne delovne liste so v stolpcu A, ki se na vsakem listu začne v celici A1. Navodila so zapisana s skritim besedilom. Vsak korak opiše informacije v tisti vrstici. Vsak naslednji korak se nadaljuje v celicah A2, A3 itd., razen če je navedeno drugače. V navodilih je lahko na primer navedeno, da se za naslednji korak »pomaknite v celico A6«. \n\nSkritega besedila ni mogoče natisniti.\n\nČe želite odstraniti ta navodila iz katerega koli delovnega lista, preprosto izbrišite stolpec A.\n"]
["Ta načrt uporablja položaje za grafično prikazovanje mejnikov in dejavnosti. S položaji lahko dodate veljavo mejniku ali dejavnosti. Preprosto prilagodite vrednosti v skladu z želeno stopnjo veljave. Mejnik/dejavnost 3 ima lahko na primer večjo veljavo kot mejnik/dejavnost 2. Če želite to označiti na grafikonu, preprosto določite višjo vrednost položaja za mejnik/dejavnost 3 kot za mejnik/dejavnost2.  \n"]
["To je zadnje navodilo na tem delovnem listu."]

{"sheet":"Podatki grafikona","index":3,"n_rows":26,"n_cols":4,"rows_kept":26,"hidden":true}
["Na tem delovnem listu so podatki za ustvarjanje dinamičnih grafikonov. Tega delovnega lista ne izbrišite!\nČe izbrišete ta delovni list, lahko ogrozite dinamično zmogljivost delovnega zvezka.","Tega delovnega lista ne izbrišite!"]
["V celici B2 je naslov tabele.","Vsebina dinamičnega grafikona"]
["V celicah od B3 do D3 do naslovi tabele. \nTa tabela se samodejno posodobi glede na vsebino na delovnem listu Mejniki.\nOpozorilo: Če spremenite ali izbrišete vsebino v tej tabeli, lahko ogrozite zmogljivost dinamičnega posodabljanja grafikona Načrt na delovnem listu Načrt.\nZa nadaljnja navodila se pomaknite v celico A15.","Datum","Dogodki","Položaj"]
[null,{"$f":"IFERROR(IF(LEN(Mejniki!D3)=0,\"\",INDEX(MejnikiNačrta[],Mejniki!$B3+$B$17,3)),\"\")","v":"2018-06-29"},{"$f":"IFERROR(IF(LEN(Mejniki!E3)=0,\"\",INDEX(MejnikiNačrta[],Mejniki!$B3+$B$17,4)),\"\")","v":"Začetek"},{"$f":"IFERROR(INDEX(MejnikiNačrta[],Mejniki!$B3+$B$17,2),\"\")","v":1}]
[null,{"$f":"IFERROR(IF(LEN(Mejniki!D4)=0,\"\",INDEX(MejnikiNačrta[],Mejniki!$B4+$B$17,3)),\"\")","v":"2018-07-09"},{"$f":"IFERROR(IF(LEN(Mejniki!E4)=0,\"\",INDEX(MejnikiNačrta[],Mejniki!$B4+$B$17,4)),\"\")","v":"Analiza težave\ndejavnost 1"},{"$f":"IFERROR(INDEX(MejnikiNačrta[],Mejniki!$B4+$B$17,2),\"\")","v":-2}]
[null,{"$f":"IFERROR(IF(LEN(Mejniki!D5)=0,\"\",INDEX(MejnikiNačrta[],Mejniki!$B5+$B$17,3)),\"\")","v":"2018-07-29"},{"$f":"IFERROR(IF(LEN(Mejniki!E5)=0,\"\",INDEX(MejnikiNačrta[],Mejniki!$B5+$B$17,4)),\"\")","v":"Primer razvoja primera\ndejavnost 1\ndejavnost 2"},{"$f":"IFERROR(INDEX(MejnikiNačrta[],Mejniki!$B5+$B$17,2),\"\")","v":1}]
[null,{"$f":"IFERROR(IF(LEN(Mejniki!D6)=0,\"\",INDEX(MejnikiNačrta[],Mejniki!$B6+$B$17,3)),\"\")","v":"2018-08-28"},{"$f":"IFERROR(IF(LEN(Mejniki!E6)=0,\"\",INDEX(MejnikiNačrta[],Mejniki!$B6+$B$17,4)),\"\")","v":"Pregled predstavitve"},{"$f":"IFERROR(INDEX(MejnikiNačrta[],Mejniki!$B6+$B$17,2),\"\")","v":-1}]
[null,{"$f":"IFERROR(IF(LEN(Mejniki!D7)=0,\"\",INDEX(MejnikiNačrta[],Mejniki!$B7+$B$17,3)),\"\")","v":"2018-10-07"},{"$f":"IFERROR(IF(LEN(Mejniki!E7)=0,\"\",INDEX(MejnikiNačrta[],Mejniki!$B7+$B$17,4)),\"\")","v":"Zagon za izvršne\ndejavnost 1\ndejavnost 2"},{"$f":"IFERROR(INDEX(MejnikiNačrta[],Mejniki!$B7+$B$17,2),\"\")","v":-0.5}]
[null,{"$f":"IFERROR(IF(LEN(Mejniki!D8)=0,\"\",INDEX(MejnikiNačrta[],Mejniki!$B8+$B$17,3)),\"\")","v":"2018-11-26"},{"$f":"IFERROR(IF(LEN(Mejniki!E8)=0,\"\",INDEX(MejnikiNačrta[],Mejniki!$B8+$B$17,4)),\"\")","v":"Poravnava za izvršne\ndejavnost 1\ndejavnost 2\ndejavnost 3"},{"$f":"IFERROR(INDEX(MejnikiNačrta[],Mejniki!$B8+$B$17,2),\"\")","v":2}]
[null,{"$f":"IFERROR(IF(LEN(Mejniki!D9)=0,\"\",INDEX(MejnikiNačrta[],Mejniki!$B9+$B$17,3)),\"\")","v":"2019-01-25"},{"$f":"IFERROR(IF(LEN(Mejniki!E9)=0,\"\",INDEX(MejnikiNačrta[],Mejniki!$B9+$B$17,4)),\"\")","v":"Odkup delničarjev"},{"$f":"IFERROR(INDEX(MejnikiNačrta[],Mejniki!$B9+$B$17,2),\"\")","v":0.5}]
[null,{"$f":"IFERROR(IF(LEN(Mejniki!D10)=0,\"\",INDEX(MejnikiNačrta[],Mejniki!$B10+$B$17,3)),\"\")","v":"2019-04-05"},{"$f":"IFERROR(IF(LEN(Mejniki!E10)=0,\"\",INDEX(MejnikiNačrta[],Mejniki!$B10+$B$17,4)),\"\")","v":"Izbiranje vira"},{"$f":"IFERROR(INDEX(MejnikiNačrta[],Mejniki!$B10+$B$17,2),\"\")","v":-1}]
[null,{"$f":"IFERROR(IF(LEN(Mejniki!D11)=0,\"\",INDEX(MejnikiNačrta[],Mejniki!$B11+$B$17,3)),\"\")","v":"2019-06-24"},{"$f":"IFERROR(IF(LEN(Mejniki!E11)=0,\"\",INDEX(MejnikiNačrta[],Mejniki!$B11+$B$17,4)),\"\")","v":"Ustvarjanje skupine\ndejavnost 1 "},{"$f":"IFERROR(INDEX(MejnikiNačrta[],Mejniki!$B11+$B$17,2),\"\")","v":0.5}]
[null,{"$f":"IFERROR(IF(LEN(Mejniki!D12)=0,\"\",INDEX(MejnikiNačrta[],Mejniki!$B12+$B$17,3)),\"\")","v":"2019-09-22"},{"$f":"IFERROR(IF(LEN(Mejniki!E12)=0,\"\",INDEX(MejnikiNačrta[],Mejniki!$B12+$B$17,4)),\"\")","v":"Zagon skupine\ndejavnost 1 \ndejavnost 2\ndejavnost 3\ndejavnost 4"},{"$f":"IFERROR(INDEX(MejnikiNačrta[],Mejniki!$B12+$B$17,2),\"\")","v":-2}]
[]
["Možnost drsenja po načrtu poteka s pomočjo vrednosti koraka. Naslov te možnosti je v celici B15.\nV celicah od B16 in B17 je tabela z glavo in eno samo vrednostjo.\nZa nadaljnja navodila se pomaknite v celico A19.","Zmogljivost drsenja"]
[null,"Korak vrstice"]
[null,0]
[]
["V grafikonu načrt se izrišejo leta na časovnici. Za to morate leta zajeti s seznama mejniki. \nNaslov tega odseka je »Leto« v celici B19. \nVrednosti leta se samodejno ustvarijo v celicah od C20 do C22.\nOpozorilo: Če ta leta izbrišete ali spremenite, se lahko spremeni točnost izrisovanja grafikona Načrt.\nZa nadaljnja navodila se pomaknite v celico A24.","Leto"]
[null,{"$f":"IFERROR(YEAR(B4),\"\")","v":2018},"<-- leto za začetno obdobje načrta"]
[null,{"$f":"IFERROR(IF(YEAR($B$9)=$B$20,\"\",YEAR($B$9)),\"\")","v":""},"<-- leto za srednje obdobje načrta; opomba: lahko je prazno, če je leto enako kot leto začetnega obdobja načrta"]
[null,{"$f":"IFERROR(IF(YEAR($B$13)=$B$20,\"\",YEAR($B$13)),\"\")","v":2019},"<-- leto za zadnje obdobje načrta; opomba: lahko je prazno, če je leto enako kot leto začetnega obdobja načrta"]
[]
["Kolobarne oznake v grafikonu Načrt vsebujejo datume iz vsebine dinamičnega grafikona na tem delovnem listu. Datumi so Prvi datum v celici C24, Srednji datum v celici C25 in zadnji datum v celici C26.\nNa tem delovnem listu ni dodatnih navodil.","Prvi datum",{"$f":"B4","v":"2018-06-29"}]
[null,"Srednji datum",{"$f":"B9","v":"2018-11-26"}]
[null,"Zadnji datum",{"$f":"B13","v":"2019-09-22"}]